bitfinex/quotes_BTCUSD_20251009
["timestamp","ask_amount","ask_price","bid_price","bid_amount"]
[1760000190301,0.37176894,121360.0,121350.0,0.34461122]
[1760000190757,0.60728894,121360.0,121350.0,0.58013122]
[1760000191997,0.60728894,121360.0,121350.0,0.23566154]
[1760000192957,0.37176894,121360.0,121350.0,0.23566154]
[1760000193287,0.60724894,121360.0,121350.0,0.23566154]
[1760000193692,0.37176894,121360.0,121350.0,0.00014154]
[1760000193924,0.19955579,121360.0,121350.0,0.00014154]
[1760000194126,0.39357,121360.0,121350.0,0.00014154]
[1760000194336,0.32296894,121360.0,121350.0,0.00014154]
[1760000194768,0.55836894,121360.0,121350.0,0.00014154]
[1760000194977,0.32605854,121360.0,121350.0,0.00014154]
[1760000195183,0.56141854,121360.0,121350.0,0.00014154]
[1760000195388,0.32605854,121360.0,121350.0,0.00014154]
[1760000195594,0.36524929,121360.0,121350.0,0.00014154]
[1760000195824,0.60060929,121360.0,121350.0,0.00014154]
[1760000196026,0.56141854,121360.0,121350.0,0.00014154]
[1760000196386,0.32605854,121360.0,121350.0,0.00014154]
[1760000196598,0.32605854,121360.0,121350.0,1e-08]
[1760000196829,0.56141854,121360.0,121350.0,1e-08]
[1760000198251,0.32605854,121360.0,121350.0,1e-08]
[1760000198513,0.56137854,121360.0,121350.0,1e-08]
[1760000200252,0.32605854,121360.0,121350.0,1e-08]
[1760000200455,0.56137854,121360.0,121350.0,1e-08]
[1760000200628,0.1648261,121340.0,121330.0,0.42888898]
[1760000200816,0.1648261,121340.0,121330.0,0.49260054]
[1760000201167,0.1648261,121340.0,121330.0,0.75559023]
[1760000201370,0.1648261,121340.0,121330.0,0.59075054]
[1760000201801,0.1648261,121340.0,121330.0,0.75559023]
[1760000202412,0.1648261,121340.0,121330.0,0.59075054]
[1760000202618,0.1648261,121340.0,121330.0,0.75559023]
[1760000203023,0.1648261,121340.0,121330.0,0.59075054]
[1760000203909,0.1648261,121340.0,121330.0,0.75559023]
[1760000204661,0.1648261,121340.0,121330.0,0.41112055]
[1760000204961,0.1648261,121340.0,121330.0,0.77825423]
[1760000205169,0.1648261,121340.0,121330.0,0.59075054]
[1760000205574,0.1648261,121340.0,121330.0,0.14813086]
[1760000205760,0.1648261,121340.0,121330.0,0.59193054]
[1760000206167,0.16688617,121340.0,121330.0,0.59193054]
[1760000206488,0.16688617,121340.0,121330.0,0.42903054]
[1760000206647,0.29596617,121340.0,121330.0,0.0624453]
[1760000206832,0.29596617,121340.0,121330.0,0.07159345]
[1760000207229,0.29596617,121340.0,121330.0,0.13336345]
[1760000207438,0.25988617,121340.0,121330.0,0.13336345]
[1760000208037,0.49492617,121340.0,121330.0,0.17863345]
[1760000208245,0.49492617,121340.0,121330.0,0.1694853]
[1760000209490,0.25988617,121340.0,121330.0,0.1694853]
[1760000209695,0.49492617,121340.0,121330.0,0.1694853]
[1760000210099,0.00206007,121340.0,121330.0,0.77812467]
[1760000210313,0.16688617,121340.0,121330.0,0.77812467]
[1760000210754,0.00206007,121340.0,121330.0,0.86124673]
[1760000210955,0.00206007,121340.0,121330.0,1.09632673]
[1760000212081,0.00206007,121340.0,121330.0,1.09628673]
[1760000212979,0.00206007,121340.0,121330.0,0.51677705]
[1760000213205,0.16688617,121340.0,121330.0,0.86124673]
[1760000213473,0.16688617,121340.0,121330.0,1.09628673]
[1760000213697,0.00206007,121340.0,121330.0,0.86124673]
[1760000213935,0.00206007,121340.0,121330.0,1.09624673]
[1760000214369,0.00206007,121340.0,121330.0,0.86124673]
[1760000214589,0.00206007,121340.0,121330.0,1.09624673]
[1760000215256,0.16688617,121340.0,121330.0,0.93140704]
[1760000215693,0.16688617,121340.0,121330.0,1.09624673]
[1760000215911,0.16688617,121340.0,121330.0,0.75177705]
[1760000216129,0.16688617,121340.0,121330.0,1.09624673]
[1760000217529,0.16688617,121340.0,121330.0,0.75177705]
[1760000217740,0.16688617,121340.0,121330.0,1.09624673]
[1760000218415,0.16688617,121340.0,121330.0,0.4044053]
[1760000218666,0.21524617,121340.0,121330.0,0.4043653]
[1760000218885,0.26028617,121340.0,121330.0,0.0624453]
[1760000219118,0.29576617,121340.0,121330.0,0.2973653]
[1760000219568,0.29576617,121340.0,121330.0,0.00014156]
[1760000219790,0.53068617,121340.0,121330.0,0.00014156]
[1760000221159,0.55420524,121340.0,121330.0,0.00014156]
[1760000221412,0.31928524,121340.0,121330.0,0.00014156]
[1760000221630,0.55424524,121340.0,121330.0,0.00014156]
[1760000221848,0.59746437,121340.0,121330.0,0.00014156]
[1760000222071,0.31928524,121340.0,121330.0,0.00014156]
[1760000222289,0.55424524,121340.0,121330.0,0.00014156]
[1760000222541,0.26128617,121340.0,121330.0,0.45826124]
[1760000222772,0.40284617,121340.0,121330.0,0.54973124]
[1760000222991,0.16788617,121340.0,121330.0,0.54973124]
[1760000224126,0.16788617,121340.0,121330.0,0.71457093]
[1760000224353,0.00306007,121340.0,121330.0,0.94957093]
[1760000224831,0.00306007,121340.0,121330.0,1.03269299]
[1760000225055,0.00306007,121340.0,121330.0,0.79769299]
[1760000225290,0.00306007,121340.0,121330.0,1.13769299]
[1760000225515,0.00206007,121340.0,121330.0,1.37269299]
[1760000225748,0.00206007,121340.0,121330.0,1.13769299]
[1760000225975,0.00206007,121340.0,121330.0,1.37273299]
[1760000227568,0.00206007,121340.0,121330.0,1.13869299]
[1760000227789,0.00206007,121340.0,121330.0,1.37365299]
[1760000228014,0.00206007,121340.0,121330.0,1.22441299]
[1760000228224,0.00206007,121340.0,121330.0,1.45937299]
[1760000229519,0.00206007,121340.0,121330.0,1.83395457]
[1760000229949,0.00206007,121340.0,121330.0,1.48948489]
[1760000230563,0.00206007,121340.0,121330.0,1.59903457]
[1760000230768,0.00206007,121340.0,121330.0,1.83399457]
[1760000230969,0.00206007,121340.0,121330.0,1.16884489]
[1760000231191,0.00206007,121340.0,121330.0,1.83244489]
[1760000231401,0.00206007,121340.0,121330.0,2.17691457]
[1760000231606,0.00206007,121340.0,121330.0,1.94195457]
[1760000231815,0.00206007,121340.0,121330.0,2.17687457]
[1760000232013,0.00206007,121340.0,121330.0,1.9635056]
[1760000232439,0.00206007,121340.0,121330.0,1.82858559]
[1760000232654,0.0004,121390.0,121380.0,0.61534219]
[1760000232867,0.16515821,121390.0,121380.0,0.89644219]
[1760000233081,0.16515821,121390.0,121380.0,1.05277219]
[1760000233285,0.0004,121390.0,121380.0,1.13589425]
[1760000233932,0.00090474,121390.0,121380.0,1.13589425]
[1760000234610,0.16566295,121390.0,121380.0,1.13589425]
[1760000234819,0.16566295,121390.0,121380.0,0.45040385]
[1760000235035,0.16566295,121390.0,121380.0,0.68536385]
[1760000235568,0.16566295,121390.0,121380.0,0.28563206]
[1760000235570,0.21070295,121390.0,121380.0,0.19416206]
[1760000235802,0.16477179,121380.0,121370.0,0.30243536]
[1760000236004,0.16477179,121380.0,121370.0,0.45041742]
[1760000236223,0.16477179,121380.0,121370.0,0.68541742]
[1760000236408,0.16477179,121380.0,121370.0,0.90098782]
[1760000236671,0.16477179,121380.0,121370.0,1.13598782]
[1760000236878,0.16566295,121390.0,121370.0,0.90098782]
[1760000237078,0.16566295,121390.0,121380.0,0.04618]
[1760000237330,0.16566295,121390.0,121380.0,0.34604]
[1760000237839,0.16566295,121390.0,121380.0,0.346]
[1760000238792,0.16566295,121390.0,121380.0,1.05277219]
[1760000238995,0.16566295,121390.0,121380.0,0.8880004]
[1760000239191,0.16566295,121390.0,121380.0,0.20251]
[1760000239402,0.16823656,121390.0,121380.0,0.43743]
[1760000240029,0.16823656,121390.0,121380.0,0.80398671]
[1760000240544,0.16823656,121390.0,121380.0,0.43743]
[1760000240903,0.16823656,121390.0,121380.0,0.8648995]
[1760000241082,0.16823656,121390.0,121380.0,1.02963129]
[1760000241502,0.16823656,121390.0,121380.0,0.8648595]
[1760000242130,0.16823656,121390.0,121380.0,0.79475129]
[1760000242338,0.16823656,121390.0,121380.0,1.02963129]
[1760000242654,0.16823656,121390.0,121380.0,0.8648195]
[1760000243324,0.16823656,121390.0,121380.0,1.02959129]
[1760000244418,0.00347835,121390.0,121380.0,0.87787335]
[1760000244643,0.00347835,121390.0,121380.0,1.11267335]
[1760000244644,0.16823656,121390.0,121380.0,1.11267335]
[1760000244856,0.00347835,121390.0,121380.0,0.87787335]
[1760000245075,0.00347835,121390.0,121380.0,1.11263335]
[1760000245528,0.00347835,121390.0,121380.0,1.11267335]
[1760000245971,0.00347835,121390.0,121380.0,0.87787335]
[1760000246191,0.00347835,121390.0,121380.0,1.11267335]
[1760000246412,0.00347835,121390.0,121380.0,1.21787335]
[1760000246655,0.00347835,121390.0,121380.0,1.45267335]
[1760000247077,0.00347835,121390.0,121380.0,1.21787335]
[1760000247286,0.00347835,121390.0,121380.0,1.45267335]
[1760000247542,0.00347835,121390.0,121380.0,1.53835335]
[1760000247763,0.00347835,121390.0,121380.0,1.53831335]
[1760000248669,0.00347835,121390.0,121380.0,1.45263335]
[1760000248888,0.00347835,121390.0,121380.0,1.53831335]
[1760000249121,0.00347835,121390.0,121380.0,1.21787335]
[1760000249383,0.00347835,121390.0,121380.0,1.53831335]
[1760000249619,0.00347835,121390.0,121380.0,1.21787335]
[1760000249851,0.00347835,121390.0,121380.0,1.30355335]
[1760000250088,0.16823656,121390.0,121380.0,1.21787335]
[1760000250314,0.16823656,121390.0,121380.0,1.53831335]
[1760000251207,0.00347835,121390.0,121380.0,1.53831335]
[1760000252395,0.16823656,121390.0,121380.0,1.45259335]
[1760000252854,0.00347835,121390.0,121380.0,1.21787335]
[1760000253075,0.00347835,121390.0,121380.0,1.45259335]
[1760000253736,0.00347835,121390.0,121380.0,1.30355335]
[1760000253967,0.00347835,121390.0,121380.0,1.53823335]
[1760000254642,0.00347835,121390.0,121380.0,1.30355335]
[1760000254866,0.00347835,121390.0,121380.0,1.53823335]
[1760000255331,0.00347835,121390.0,121380.0,1.20355335]
[1760000255577,0.00347835,121390.0,121380.0,1.43819335]
[1760000256486,0.00347835,121390.0,121380.0,1.11787335]
[1760000256719,0.16823656,121390.0,121380.0,1.43835335]
[1760000256936,0.00347835,121390.0,121380.0,1.43835335]
[1760000257153,0.00347835,121390.0,121380.0,1.35279335]
[1760000257809,0.00347835,121390.0,121380.0,1.11787335]
[1760000258025,0.00347835,121390.0,121380.0,1.35275335]
[1760000259173,0.00347835,121390.0,121380.0,1.11787335]
[1760000259657,0.00347835,121390.0,121380.0,1.35279335]
[1760000260093,0.00347835,121390.0,121380.0,1.76003339]
[1760000262087,0.00347835,121390.0,121380.0,1.35262543]
[1760000263274,0.00347835,121390.0,121380.0,1.11770543]
[1760000263523,0.00347835,121390.0,121380.0,1.35250543]
[1760000265063,0.00347835,121390.0,121380.0,1.11770543]
[1760000265281,0.00347835,121390.0,121380.0,1.43818543]
[1760000265916,0.00347835,121390.0,121380.0,1.20338543]
[1760000266125,0.00347835,121390.0,121380.0,1.43814543]
[1760000268991,0.00347835,121390.0,121380.0,1.20338543]
[1760000269217,0.00347835,121390.0,121380.0,1.43806543]
[1760000269440,0.00347835,121390.0,121380.0,1.46821733]
[1760000270107,0.00347835,121390.0,121380.0,1.46817733]
[1760000270333,0.01696497,121420.0,121400.0,0.16473161]
[1760000270551,0.28887558,121420.0,121410.0,0.31776206]
[1760000270792,0.35054558,121420.0,121410.0,0.31776206]
[1760000271012,0.35208905,121420.0,121410.0,0.31776206]
[1760000271227,0.35208905,121420.0,121410.0,0.23464]
[1760000271439,0.35208905,121420.0,121410.0,0.2346]
[1760000271661,0.25253905,121420.0,121410.0,0.46516107]
[1760000273836,0.27157107,121410.0,121400.0,0.54851826]
[1760000274780,0.37112107,121410.0,121400.0,0.08326362]
[1760000275205,0.37112107,121410.0,121400.0,0.31790362]
[1760000276205,0.37112107,121410.0,121400.0,0.23478156]
[1760000277843,0.37215013,121410.0,121400.0,0.00014156]
[1760000278055,0.27260013,121410.0,121400.0,0.06622156]
[1760000278319,0.36509013,121410.0,121400.0,0.06622156]
[1760000278781,0.36509013,121410.0,121400.0,0.39824156]
[1760000278782,0.16576013,121410.0,121400.0,0.39824156]
[1760000279003,0.32485013,121410.0,121400.0,0.30078156]
[1760000279218,0.37001013,121410.0,121400.0,0.30078156]
[1760000279431,0.27752013,121410.0,121400.0,0.30078156]
[1760000280109,0.27752013,121410.0,121400.0,0.06622156]
[1760000280329,0.27752013,121410.0,121400.0,0.30090156]
[1760000280539,0.21092013,121410.0,121400.0,0.30090156]
[1760000281176,0.27752013,121410.0,121400.0,0.30090156]
[1760000282187,0.27752013,121410.0,121400.0,0.06622156]
[1760000282432,0.27752013,121410.0,121400.0,0.30086156]
[1760000282641,0.27752013,121410.0,121400.0,0.30082156]
[1760000283465,0.27752013,121410.0,121400.0,0.3284262]
[1760000283466,0.16576013,121410.0,121400.0,0.3284262]
[1760000283673,0.16576013,121410.0,121400.0,0.30078156]
[1760000283814,0.16576013,121410.0,121400.0,0.98147066]
[1760000284022,0.16576013,121410.0,121400.0,0.75050446]
[1760000284233,0.16576013,121410.0,121400.0,0.56981446]
[1760000284427,0.23236013,121410.0,121400.0,0.80437446]
[1760000284865,0.23236013,121410.0,121400.0,0.54640223]
[1760000285316,0.16474464,121400.0,121390.0,0.04618]
[1760000285530,0.16475821,121390.0,121380.0,0.42256708]
[1760000285759,0.36900821,121390.0,121380.0,0.14411631]
[1760000285968,0.36900821,121390.0,121380.0,0.37871631]
[1760000286395,0.36900821,121390.0,121380.0,0.40208854]
[1760000286607,0.36900821,121390.0,121380.0,0.37875631]
[1760000286820,0.36900821,121390.0,121380.0,0.63672854]
[1760000287045,0.36900821,121390.0,121380.0,0.37875631]
[1760000287218,0.38928664,121390.0,121380.0,0.63672854]
[1760000287821,0.38928664,121390.0,121380.0,0.14411631]
[1760000288024,0.38928664,121390.0,121380.0,0.63668854]
[1760000288444,0.38928664,121390.0,121380.0,0.37871631]
[1760000288646,0.38928664,121390.0,121380.0,0.55356648]
[1760000289372,0.38928664,121390.0,121380.0,0.49265369]
[1760000292091,0.16477179,121380.0,121370.0,0.0013756]
[1760000292296,0.70246402,121380.0,121370.0,0.00188034]
[1760000292515,0.60358179,121380.0,121370.0,0.00188034]
[1760000294330,0.86155402,121380.0,121370.0,0.00188034]
[1760000294545,0.70699082,121380.0,121370.0,0.00188034]
[1760000294760,0.94155082,121380.0,121370.0,0.00188034]
[1760000296569,0.68357859,121380.0,121370.0,0.00188034]
[1760000296793,0.70799082,121380.0,121370.0,0.00188034]
[1760000297003,0.60454179,121380.0,121370.0,0.00188034]
[1760000297879,0.94454179,121380.0,121370.0,0.00188034]
[1760000298517,1.20251402,121380.0,121370.0,0.00188034]
[1760000299419,1.20247402,121380.0,121370.0,0.00188034]
[1760000299629,1.30596305,121380.0,121370.0,0.00188034]
[1760000299891,1.54048305,121380.0,121370.0,0.00188034]
[1760000300092,1.45202934,121380.0,121370.0,0.00188034]
[1760000301180,0.1648261,121340.0,121330.0,0.08960503]
[1760000301391,0.2099861,121340.0,121330.0,0.06619872]
[1760000301603,0.3690761,121340.0,121330.0,0.06619872]
[1760000302057,0.39382194,121340.0,121330.0,0.06619872]
[1760000302515,0.39382194,121340.0,121330.0,0.43397741]
[1760000302746,0.30133194,121340.0,121330.0,0.50005741]
[1760000303625,0.39382194,121340.0,121330.0,0.43397741]
[1760000304512,0.39382194,121340.0,121330.0,0.06619872]
[1760000304933,0.39382194,121340.0,121330.0,0.41056741]
[1760000306257,0.39382194,121340.0,121330.0,0.06619872]
[1760000307102,0.41143027,121340.0,121330.0,0.06619872]
[1760000307521,0.39382194,121340.0,121330.0,0.06825843]
[1760000307943,0.39382194,121340.0,121330.0,0.41262712]
[1760000308574,0.39382194,121340.0,121330.0,0.43603712]
[1760000309926,0.39382194,121340.0,121330.0,0.09166843]
[1760000310161,0.39382194,121340.0,121330.0,0.64718712]
[1760000310372,0.39382194,121340.0,121330.0,0.30281843]
[1760000310581,0.39382194,121340.0,121330.0,0.64718712]
[1760000310984,0.39382194,121340.0,121330.0,0.30281843]
[1760000312085,0.39382194,121340.0,121330.0,0.06825843]
[1760000312300,0.39382194,121340.0,121330.0,0.00214134]
[1760000312915,0.47381874,121340.0,121330.0,0.00214134]
[1760000313345,0.39382194,121340.0,121330.0,0.00214134]
[1760000313556,0.73382194,121340.0,121330.0,0.00214134]
[1760000314573,0.13650584,121340.0,121330.0,0.59848972]
[1760000314776,0.53589194,121340.0,121330.0,0.59848972]
[1760000315191,0.53589194,121340.0,121330.0,0.25412103]
[1760000315402,0.53589194,121340.0,121330.0,0.59848972]
[1760000315613,0.30133194,121340.0,121330.0,0.59848972]
[1760000315805,0.18957194,121340.0,121330.0,0.96300178]
[1760000316009,0.19057194,121340.0,121330.0,0.96300178]
[1760000316226,0.19057194,121340.0,121330.0,0.93370959]
[1760000316859,0.19057194,121340.0,121330.0,0.75133209]
[1760000317480,0.25652194,121340.0,121330.0,0.75133209]
[1760000318315,0.19057194,121340.0,121330.0,0.91617178]
[1760000318970,0.25652194,121340.0,121330.0,0.4069634]
[1760000319247,0.25652194,121340.0,121330.0,0.75133209]
[1760000322406,0.19057194,121340.0,121330.0,0.75133209]
[1760000322787,0.25652194,121340.0,121330.0,0.4069634]
[1760000323008,0.19057194,121340.0,121330.0,0.91617178]
[1760000324278,0.1658261,121340.0,121330.0,0.72844178]
[1760000324492,0.1658261,121340.0,121330.0,0.96300178]
[1760000324906,0.1658261,121340.0,121330.0,0.61863309]
[1760000325124,0.1658261,121340.0,121330.0,0.72844178]
[1760000325352,0.001,121340.0,121330.0,0.72844178]
[1760000325600,0.001,121340.0,121330.0,0.96300178]
[1760000326466,0.17303947,121360.0,121350.0,0.16481252]
[1760000326701,0.17303947,121360.0,121350.0,0.76715121]
[1760000326923,0.17303947,121360.0,121350.0,0.83235121]
[1760000327141,0.33193106,121370.0,121350.0,0.85031874]
[1760000327351,0.18956106,121370.0,121360.0,0.34436869]
[1760000327816,0.02474331,121370.0,121360.0,0.27682894]
[1760000328112,0.17301037,121380.0,121360.0,0.93887969]
[1760000328113,0.22091638,121380.0,121360.0,0.93887969]
[1760000328335,0.23800961,121380.0,121370.0,0.02341]
[1760000328556,0.16477179,121380.0,121370.0,0.37082392]
[1760000328784,0.16477179,121380.0,121370.0,0.37]
[1760000329020,0.22772179,121380.0,121370.0,0.08861]
[1760000329233,0.27621179,121380.0,121370.0,0.08861]
[1760000329459,0.27721179,121380.0,121370.0,0.32317]
[1760000329683,0.27721179,121380.0,121370.0,0.32325163]
[1760000329910,0.27621179,121380.0,121370.0,0.32325163]
[1760000330121,0.27821179,121380.0,121370.0,0.32325163]
[1760000330342,0.28021179,121380.0,121370.0,0.32325163]
[1760000331418,0.28021179,121380.0,121370.0,0.83240568]
[1760000331632,0.28021179,121380.0,121370.0,0.50923568]
[1760000331916,0.28021179,121380.0,121370.0,0.39942699]
[1760000332134,0.28021179,121380.0,121370.0,0.57901032]
[1760000332544,0.28021179,121380.0,121370.0,0.74379568]
[1760000332978,0.28021179,121380.0,121370.0,0.34445032]
[1760000333228,0.28021179,121380.0,121370.0,0.57901032]
[1760000333452,0.28021179,121380.0,121370.0,0.34445032]
[1760000333672,0.37742179,121380.0,121370.0,0.23464163]
[1760000333888,0.37742179,121380.0,121370.0,8.163e-05]
[1760000335186,0.40216145,121380.0,121370.0,8.163e-05]
[1760000335632,0.48215825,121380.0,121370.0,8.163e-05]
[1760000336275,0.40216145,121380.0,121370.0,8.163e-05]
[1760000337816,0.39138822,121380.0,121370.0,8.163e-05]
[1760000338032,0.62590822,121380.0,121370.0,8.163e-05]
[1760000340251,0.39138822,121380.0,121370.0,8.163e-05]
[1760000340476,0.62590822,121380.0,121370.0,8.163e-05]
[1760000340917,0.16478536,121370.0,121360.0,0.34436869]
[1760000341140,0.30573536,121370.0,121360.0,0.57897031]
[1760000341364,0.37033536,121370.0,121360.0,0.34445031]
[1760000341579,0.37033536,121370.0,121360.0,0.23460162]
[1760000341802,0.45033216,121370.0,121360.0,8.162e-05]
[1760000342029,0.71470405,121370.0,121360.0,8.162e-05]
[1760000342252,0.60485536,121370.0,121360.0,8.162e-05]
[1760000342470,0.37033536,121370.0,121360.0,8.162e-05]
[1760000342693,0.94485536,121370.0,121360.0,8.162e-05]
[1760000343753,1.02485216,121370.0,121360.0,8.162e-05]
[1760000346847,0.16481252,121350.0,121340.0,0.34178438]
[1760000347062,0.305761,121360.0,121340.0,0.74997702]
[1760000347283,0.27800252,121350.0,121340.0,0.74997702]
[1760000347489,0.27800252,121350.0,121340.0,0.74767847]
[1760000347698,0.27800252,121350.0,121340.0,0.64767847]
[1760000347908,0.27800252,121350.0,121340.0,0.42139977]
[1760000348125,0.27800252,121350.0,121340.0,0.65591977]
[1760000348357,0.27800252,121350.0,121340.0,0.31155108]
[1760000348582,0.27800252,121350.0,121340.0,0.65591977]
[1760000349140,0.11319,121350.0,121340.0,0.42139977]
[1760000349355,0.21338894,121360.0,121350.0,0.16481252]
[1760000349570,0.37034894,121360.0,121350.0,0.34436869]
[1760000349779,0.16481252,121350.0,121340.0,0.65591977]
[1760000349997,0.16481252,121350.0,121340.0,0.42139977]
[1760000350213,0.22941252,121350.0,121340.0,0.65591977]
[1760000350852,0.27800252,121350.0,121340.0,0.42139977]
[1760000351070,0.27800252,121350.0,121340.0,0.50933591]
[1760000351317,0.27800252,121350.0,121340.0,0.74385591]
[1760000353075,0.27800252,121350.0,121340.0,0.39948722]
[1760000353293,0.27800252,121350.0,121340.0,0.50933591]
[1760000353526,0.27800252,121350.0,121340.0,0.74385591]
[1760000354191,0.37036252,121350.0,121340.0,0.00014112]
[1760000354411,0.77310636,121350.0,121340.0,0.00014112]
[1760000354628,1.1378539,121350.0,121340.0,0.00014112]
[1760000354845,1.3723739,121350.0,121340.0,0.00014112]
[1760000355064,1.02800521,121350.0,121340.0,0.00014112]
[1760000356996,1.02800521,121350.0,121340.0,0.00117093]
[1760000357761,0.79348521,121350.0,121340.0,0.00117093]
[1760000357967,1.02800521,121350.0,121340.0,0.00117093]
[1760000358337,0.79348521,121350.0,121340.0,0.00117093]
[1760000358608,1.02800521,121350.0,121340.0,0.00117093]
[1760000359244,0.96963006,121350.0,121340.0,0.00117093]
[1760000360560,0.94488252,121350.0,121340.0,0.00117093]
[1760000362068,1.20319529,121350.0,121340.0,0.00117093]
[1760000362300,0.96867529,121350.0,121340.0,0.00117093]
[1760000362519,1.20319529,121350.0,121340.0,0.00117093]
[1760000362947,1.02487932,121350.0,121340.0,0.00117093]
[1760000363154,1.28319209,121350.0,121340.0,0.00117093]
[1760000363574,1.02487932,121350.0,121340.0,0.00117093]
[1760000363872,1.28319209,121350.0,121340.0,0.00117093]
[1760000365395,1.04867209,121350.0,121340.0,0.00117093]
[1760000365614,1.20319529,121350.0,121340.0,0.00117093]
[1760000365816,0.71036252,121350.0,121340.0,0.00117093]
[1760000366033,1.20319529,121350.0,121340.0,0.00117093]
[1760000366241,0.94488252,121350.0,121340.0,0.00117093]
[1760000366466,1.20319529,121350.0,121340.0,0.00117093]
[1760000366880,0.96867529,121350.0,121340.0,0.00117093]
[1760000367095,1.20319529,121350.0,121340.0,0.00117093]
[1760000367989,0.1648261,121340.0,121330.0,0.25831277]
[1760000368193,0.3680261,121340.0,121330.0,0.25835989]
[1760000368640,0.39067354,121340.0,121330.0,4.712e-05]
[1760000369283,0.3680261,121340.0,121330.0,4.712e-05]
[1760000370419,0.6025461,121340.0,121330.0,4.712e-05]
[1760000371035,0.3680261,121340.0,121330.0,4.712e-05]
[1760000371269,0.384182,121340.0,121330.0,4.712e-05]
[1760000371428,0.384182,121340.0,121330.0,0.25835989]
[1760000371651,0.618702,121340.0,121330.0,0.25835989]
[1760000371862,0.618702,121340.0,121330.0,4.712e-05]
[1760000373151,0.65903199,121340.0,121330.0,4.712e-05]
[1760000374671,0.42451199,121340.0,121330.0,4.712e-05]
[1760000374884,0.65899199,121340.0,121330.0,4.712e-05]
[1760000375119,0.16483969,121330.0,121320.0,0.15835989]
[1760000375354,0.30455969,121330.0,121320.0,0.15844139]
[1760000375600,0.62635246,121330.0,121320.0,8.15e-05]
[1760000376029,0.86083246,121330.0,121320.0,8.15e-05]
[1760000376418,0.86083246,121330.0,121320.0,0.00111157]
[1760000376679,1.28082926,121330.0,121320.0,0.00111157]
[1760000376916,1.20083246,121330.0,121320.0,0.00111157]
[1760000377813,0.96635246,121330.0,121320.0,0.00111157]
[1760000378054,0.94251969,121330.0,121320.0,0.00111157]
[1760000378278,1.20083246,121330.0,121320.0,0.00111157]
[1760000378485,0.96635246,121330.0,121320.0,0.00111157]
[1760000378688,1.04634926,121330.0,121320.0,0.00111157]
[1760000378904,1.28082926,121330.0,121320.0,0.00100805]
[1760000379244,0.86083246,121330.0,121320.0,0.00100805]
[1760000380617,0.60251969,121330.0,121320.0,0.00100805]
[1760000380824,0.86083246,121330.0,121320.0,0.00100805]
[1760000381270,0.60251969,121330.0,121320.0,0.00100805]
[1760000381917,0.16485328,121320.0,121300.0,0.43143342]
[1760000382131,0.16485328,121320.0,121310.0,0.25831277]
[1760000382132,0.30457328,121320.0,121310.0,0.25831277]
[1760000382335,0.36805328,121320.0,121310.0,0.25831277]
[1760000382985,0.16486687,121310.0,121300.0,0.43155499]
[1760000383235,0.27743687,121310.0,121300.0,0.68986776]
[1760000384082,0.27743687,121310.0,121300.0,0.69086776]
[1760000384294,0.27743687,121310.0,121300.0,0.68986776]
[1760000384734,0.27743687,121310.0,121300.0,0.69086776]
[1760000386248,0.11257,121310.0,121300.0,0.69086776]
[1760000386469,0.27743687,121310.0,121300.0,0.69086776]
[1760000386680,0.27743687,121310.0,121300.0,0.69189808]
[1760000389309,0.27743687,121310.0,121300.0,0.92637808]
[1760000389527,0.53905328,121320.0,121310.0,0.16486687]
[1760000389775,0.53905328,121320.0,121300.0,0.66703499]
[1760000389995,0.53905328,121320.0,121310.0,0.01128868]
[1760000390227,0.53905328,121320.0,121310.0,0.25882789]
[1760000390436,0.60262328,121320.0,121310.0,0.25882789]
[1760000392129,0.36814328,121320.0,121310.0,0.25882789]
[1760000392339,0.60262328,121320.0,121310.0,0.25882789]
[1760000394760,0.36814328,121320.0,121310.0,0.25882789]
[1760000394974,0.60262328,121320.0,121310.0,0.25882789]
[1760000395386,0.36814328,121320.0,121310.0,0.25882789]
[1760000395808,0.60262328,121320.0,121310.0,0.25882789]
[1760000397673,0.60262328,121320.0,121310.0,0.00051512]
[1760000397857,0.60262328,121320.0,121310.0,0.25882789]
[1760000400262,0.27751328,121320.0,121310.0,0.25882789]
[1760000400486,0.16485328,121320.0,121310.0,0.51714066]
[1760000400698,0.16485328,121320.0,121310.0,0.75158066]
[1760000400938,0.27712328,121320.0,121310.0,0.23495512]
[1760000401157,0.27712328,121320.0,121310.0,0.49326789]
[1760000401784,0.27712328,121320.0,121310.0,0.00051512]
[1760000401985,0.27712328,121320.0,121310.0,0.50598933]
[1760000402200,0.27712328,121320.0,121310.0,0.49326789]
[1760000402679,0.27712328,121320.0,121310.0,0.25882789]
[1760000402890,0.27712328,121320.0,121310.0,0.23495512]
[1760000403312,0.27712328,121320.0,121310.0,0.25882789]
[1760000403524,0.27712328,121320.0,121310.0,0.00051512]
[1760000403727,0.27712328,121320.0,121310.0,0.49326789]
[1760000404593,0.27712328,121320.0,121310.0,0.00051512]
[1760000404811,0.27712328,121320.0,121310.0,0.49326789]
[1760000405068,0.21364328,121320.0,121310.0,0.25882789]
[1760000405301,0.45661167,121330.0,121310.0,0.39982199]
[1760000405522,0.16485328,121320.0,121310.0,0.39982199]
[1760000405735,0.16485328,121320.0,121310.0,0.16538199]
[1760000405953,0.27712328,121320.0,121310.0,0.23495512]
[1760000406178,0.27712328,121320.0,121310.0,0.16538199]
[1760000406407,0.27712328,121320.0,121310.0,0.39982199]
[1760000406820,0.27712328,121320.0,121310.0,0.65813476]
[1760000407038,0.21364328,121320.0,121310.0,0.65813476]
[1760000407258,0.21364328,121320.0,121310.0,0.49326789]
[1760000407700,0.16485328,121320.0,121310.0,0.65813476]
[1760000408156,0.16485328,121320.0,121310.0,0.39982199]
[1760000408157,0.22833328,121320.0,121310.0,0.39982199]
[1760000408367,0.16485328,121320.0,121310.0,0.39982199]
[1760000408577,0.16485328,121320.0,121310.0,0.91644753]
[1760000409015,0.16485328,121320.0,121310.0,0.68200753]
[1760000409226,0.16485328,121320.0,121310.0,0.91644753]
[1760000409581,0.00137627,121340.0,121320.0,0.16485328]
[1760000409788,0.16620237,121340.0,121330.0,0.75106554]
[1760000409983,0.16620237,121340.0,121330.0,0.81590523]
[1760000410233,0.16620237,121340.0,121330.0,0.49275277]
[1760000410797,0.16620237,121340.0,121330.0,0.25831277]
[1760000411204,0.16720237,121340.0,121330.0,0.49271277]
[1760000413307,0.16483969,121330.0,121320.0,0.08312206]
[1760000413512,0.16483969,121330.0,121320.0,0.9198676]
[1760000413712,0.16483969,121330.0,121320.0,0.5997476]
[1760000414155,0.16485328,121320.0,121310.0,0.00051512]
[1760000414346,0.16485328,121320.0,121310.0,0.48842995]
[1760000414552,0.22833328,121320.0,121310.0,0.48842995]
[1760000414983,0.16483969,121330.0,121310.0,0.99952959]
[1760000415221,0.16483969,121330.0,121320.0,0.51662554]
[1760000415422,0.16483969,121330.0,121310.0,0.48290405]
[1760000415665,0.22323367,121340.0,121310.0,0.48290405]
[1760000415666,0.17444367,121340.0,121320.0,0.24797534]
[1760000415885,0.17444367,121340.0,121330.0,0.39923969]
[1760000416101,0.17444367,121340.0,121330.0,0.48236175]
[1760000416102,0.00137627,121340.0,121330.0,0.48236175]
[1760000416309,0.16620237,121340.0,121330.0,0.48236175]
[1760000416528,0.16620237,121340.0,121330.0,0.99898729]
[1760000416736,0.00137627,121340.0,121330.0,2.15371027]